bitfinex/quotes_ETHUSD_20251230
["timestamp","ask_amount","ask_price","bid_price","bid_amount"]
[1767105340599,2.3842,2975.0,2973.7,3.36271794]
[1767105340908,2.3842,2975.0,2973.8,0.882]
[1767105341085,2.3842,2974.8,2973.7,0.882]
[1767105341286,2.3842,2974.8,2973.9,3.36257374]
[1767105341488,2.3842,2975.3,2973.9,0.42445737]
[1767105341798,2.3842,2975.3,2974.0,0.882]
[1767105341998,0.001,2975.5,2974.1,17.197715]
[1767105342511,0.001,2975.5,2974.1,6.696011]
[1767105342707,2.3842,2975.4,2974.2,0.882]
[1767105342913,2.3842,2975.3,2974.2,0.882]
[1767105343296,0.001,2975.5,2974.2,0.882]
[1767105343484,0.001,2975.5,2974.3,3.36213562]
[1767105344081,2.3852,2975.5,2974.2,6.72442642]
[1767105344287,2.3852,2975.5,2974.4,0.882]
[1767105344578,0.001,2975.5,2974.4,1.64264264]
[1767105344780,0.001,2975.5,2974.5,0.01013924]
[1767105345012,0.001,2975.5,2974.5,30.0]
[1767105345189,0.001,2975.5,2974.2,3.36217775]
[1767105345190,2.3842,2975.4,2974.2,3.36217775]
[1767105345394,5.74520561,2975.3,2974.4,0.881]
[1767105345592,0.57452056,2975.2,2974.4,0.881]
[1767105345790,0.57452056,2975.2,2974.5,0.881]
[1767105346196,0.001,2975.5,2974.5,0.881]
[1767105346713,3.36183318,2975.5,2974.5,0.881]
[1767105347013,3.36183718,2975.5,2974.6,0.881]
[1767105347212,9.13597436,2975.5,2974.5,0.881]
[1767105347419,9.13597436,2975.5,2974.2,0.01013924]
[1767105347420,3.36100561,2975.3,2974.2,3.36221954]
[1767105347625,2.99073056,2975.2,2973.7,0.03362814]
[1767105347788,2.99073056,2975.2,2973.9,3.36251617]
[1767105348126,2.99073056,2975.2,2974.0,0.03362474]
[1767105348324,9.13513488,2975.4,2974.0,3.36245899]
[1767105348485,2.4133,2975.3,2974.2,3.36218059]
[1767105348813,2.4133,2975.3,2974.0,3.36245899]
[1767105348814,0.02534741,2975.2,2974.0,0.881]
[1767105349122,6.72183488,2975.4,2974.0,0.881]
[1767105349123,2.4133,2975.1,2974.0,0.881]
[1767105349324,2.4133,2975.1,2974.0,4.24339316]
[1767105349522,3.36134453,2975.0,2974.0,0.91462474]
[1767105349726,5.77464453,2975.0,2974.0,4.24345762]
[1767105349930,2.4133,2975.0,2974.0,4.27708236]
[1767105350101,2.4133,2975.0,2974.1,0.03362361]
[1767105350486,3.36108288,2975.3,2974.1,0.03362361]
[1767105350791,2.4133,2975.4,2974.1,0.79757921]
[1767105350997,0.001,2975.5,2974.2,18.139518]
[1767105351211,0.001,2975.5,2974.5,24.894919]
[1767105351410,2.4133,2976.5,2974.8,27.418116]
[1767105351611,2.4133,2976.1,2974.5,10.08572868]
[1767105351813,2.99062892,2976.1,2974.6,2.59135139]
[1767105352021,2.4133,2975.9,2974.3,0.03362135]
[1767105352338,2.4133,2975.7,2974.5,0.881]
[1767105352618,0.02534741,2975.6,2974.4,0.881]
[1767105352824,2.4133,2975.5,2974.4,4.24302086]
[1767105353115,2.4133,2975.5,2974.5,0.03361909]
[1767105353318,2.4133,2975.5,2974.4,0.91462022]
[1767105353522,2.4133,2975.5,2974.2,3.36220602]
[1767105353720,2.4133,2975.3,2973.7,3.37293769]
[1767105353903,6.74713271,2975.4,2974.0,0.881]
[1767105353904,2.4133,2975.1,2974.0,0.881]
[1767105354097,2.4133,2975.1,2973.9,3.36255215]
[1767105354311,2.65716474,2975.1,2974.0,1.21725522]
[1767105355223,2.65716474,2975.1,2973.4,0.01013924]
[1767105355419,2.4133,2975.0,2973.3,0.03363266]
[1767105355599,2.4133,2974.8,2973.3,0.881]
[1767105356208,2.4133,2974.7,2972.8,2.592062]
[1767105356417,13.44583008,2974.9,2973.0,12.238729]
[1767105356418,2.4133,2974.5,2973.0,12.238729]
[1767105356700,2.4133,2974.5,2973.3,6.72646851]
[1767105356904,3.36145752,2974.9,2973.4,0.03363153]
[1767105357136,5.77468424,2975.0,2973.6,14.42607]
[1767105357321,6.72276848,2975.0,2973.7,0.03362814]
[1767105357619,3.36168353,2974.7,2973.5,6.72608036]
[1767105357819,3.36168353,2974.7,2973.4,0.01013924]
[1767105357820,2.4133,2974.6,2973.1,0.01013924]
[1767105358010,2.4133,2974.6,2973.2,0.881]
[1767105358218,2.4133,2974.6,2973.0,0.03363605]
[1767105358515,2.4133,2974.6,2972.1,0.881]
[1767105358516,2.4133,2973.8,2972.1,0.881]
[1767105358724,2.4133,2973.6,2972.1,4.67038358]
[1767105359036,2.4133,2973.6,2972.1,1.30577283]
[1767105359220,2.4133,2973.6,2972.2,3.36448203]
[1767105359408,2.4133,2973.6,2972.1,0.881]
[1767105359834,2.4849,2973.4,2972.1,0.881]
[1767105360127,2.4849,2973.4,2972.0,0.002]
[1767105361535,2.4849,2973.0,2971.5,0.002]
[1767105361828,0.01013924,2973.4,2971.0,0.881]
[1767105361829,2.4849,2972.4,2971.0,0.881]
[1767105362000,6.67146635,2972.7,2971.2,6.67546635]
[1767105362001,3.36410077,2972.6,2971.2,6.67546635]
[1767105362201,2.4849,2972.7,2971.5,0.004]
[1767105362429,2.4849,2973.1,2971.7,0.004]
[1767105362628,0.882,2973.3,2971.8,0.04378887]
[1767105362826,5.27892997,2974.5,2972.2,0.01013924]
[1767105362827,2.4849,2973.6,2972.2,0.01013924]
[1767105363029,2.4849,2974.0,2972.5,0.004]
[1767105363639,2.4849,2974.0,2972.6,0.881]
[1767105363808,2.4849,2973.8,2972.4,0.881]
[1767105364017,2.4849,2973.8,2972.5,0.03764171]
[1767105364337,2.4849,2973.8,2972.6,0.004]
[1767105365140,2.4849,2973.8,2972.7,0.03363945]
[1767105365433,2.4849,2973.8,2972.2,0.01013924]
[1767105365734,2.4849,2973.8,2972.3,0.885]
[1767105366548,2.4849,2973.7,2972.4,6.7285695]
[1767105366751,2.4849,2973.7,2972.4,6.76621234]
[1767105366952,2.4849,2974.2,2972.7,0.004]
[1767105367251,2.4849,2974.0,2972.6,0.01013924]
[1767105367551,2.51024741,2973.9,2972.7,0.881]
[1767105368856,2.4849,2973.7,2972.7,0.881]
[1767105369151,2.4849,2973.6,2972.7,0.881]
[1767105369350,2.4849,2973.6,2972.8,0.76091168]
[1767105370325,2.4849,2974.5,2973.0,0.004]
[1767105370523,2.4849,2974.5,2973.2,0.004]
[1767105370756,2.4849,2974.1,2973.2,0.67192405]
[1767105371049,2.4849,2973.9,2972.8,4.24476639]
[1767105371254,2.4849,2973.7,2972.9,3.3636496]
[1767105371451,2.4849,2973.7,2972.8,0.881]
[1767105371837,2.51024741,2973.6,2972.6,0.881]
[1767105372141,2.4849,2973.6,2972.6,4.24503741]
[1767105372452,2.4849,2973.4,2972.8,0.002]
[1767105373030,2.4849,2973.4,2972.1,3.36455198]
[1767105373031,2.51024741,2973.3,2972.1,3.36455198]
[1767105373230,2.51024741,2973.3,2972.0,0.881]
[1767105373554,2.4849,2973.3,2972.3,3.36435949]
[1767105373759,2.4849,2973.3,2972.6,3.36399554]
[1767105373965,2.4849,2973.3,2972.7,0.03363945]
[1767105374129,2.4849,2974.4,2972.9,0.006]
[1767105374329,2.4849,2974.2,2972.6,4.24498144]
[1767105374529,10.96785524,2974.5,2972.9,0.006]
[1767105374530,2.4849,2974.0,2972.9,0.006]
[1767105374862,2.4849,2974.0,2973.1,6.7329853]
[1767105375047,3.36222187,2974.3,2973.1,6.76662022]
[1767105375229,2.4849,2974.4,2973.3,0.006]
[1767105375432,2.4849,2974.3,2973.2,0.881]
[1767105375629,2.4849,2974.8,2973.3,0.01013924]
[1767105375835,2.4849,2974.9,2973.4,0.006]
[1767105376064,2.75787647,2974.9,2973.6,0.006]
[1767105376474,2.75787647,2974.9,2973.7,0.006]
[1767105376774,2.4849,2974.9,2973.8,0.006]
[1767105376939,2.4849,2974.9,2973.9,6.72517568]
[1767105377272,2.4849,2974.9,2974.0,0.881]
[1767105377449,2.4849,2974.9,2974.1,0.881]
[1767105378263,2.4849,2974.9,2974.1,1.64161757]
[1767105378533,2.3946,2975.3,2974.2,0.006]
[1767105378752,5.75561731,2975.3,2974.2,0.006]
[1767105378958,2.3946,2975.3,2974.3,3.36213562]
[1767105379552,5.75561316,2975.3,2974.3,3.36213562]
[1767105379755,0.001,2975.5,2974.4,0.005]
[1767105379955,2.3946,2975.9,2974.4,0.01013924]
[1767105380167,2.3946,2975.9,2974.5,0.004]
[1767105380367,2.3946,2975.8,2974.6,0.881]
[1767105380874,2.3946,2975.8,2974.7,0.003]
[1767105381176,2.3946,2975.8,2974.8,0.003]
[1767105381373,2.3946,2975.8,2974.9,0.67263671]
[1767105381946,5.78039651,2975.8,2974.9,0.67263671]
[1767105382147,2.41994741,2975.8,2974.9,0.67263671]
[1767105382471,2.41994741,2975.8,2974.7,3.36168353]
[1767105382782,2.3946,2975.8,2974.9,0.003]
[1767105382944,0.001,2976.0,2975.0,6.72268906]
[1767105383148,0.001,2976.3,2975.4,0.003]
[1767105383382,0.001,2976.7,2975.6,0.003]
[1767105383948,5.7537658,2977.0,2975.6,0.001]
[1767105384209,7.73865569,2980.2,2976.7,6.67146635]
[1767105384477,7.73865569,2980.2,2977.8,0.17536865]
[1767105384478,0.01013924,2978.6,2977.8,0.17536865]
[1767105384691,0.01013924,2978.6,2975.9,6.67146635]
[1767105384692,2.3946,2978.1,2975.9,6.67146635]
[1767105384974,0.01013924,2978.2,2975.0,16.80672265]
[1767105384975,2.3946,2977.7,2976.1,0.001]
[1767105385176,2.3946,2977.5,2976.2,0.881]
[1767105385379,2.63507392,2977.6,2976.1,6.72120428]
[1767105385554,2.63507392,2977.6,2976.2,0.882]
[1767105385763,2.63507392,2977.6,2976.2,0.881]
[1767105386074,2.63507392,2977.6,2976.3,0.001]
[1767105386274,3.3297692,2977.5,2976.3,0.001]
[1767105386478,3.3297692,2977.5,2975.9,0.881]
[1767105386479,2.3946,2977.4,2975.9,0.881]
[1767105386666,2.3946,2977.4,2975.9,4.24229578]
[1767105386863,2.3946,2977.4,2976.0,0.001]
[1767105387186,2.3946,2977.2,2975.8,0.881]
[1767105387379,2.3946,2977.0,2975.8,0.881]
[1767105387550,2.3946,2976.8,2975.1,3.36123095]
[1767105387879,2.3946,2976.8,2975.3,0.001]
[1767105388079,0.881,2976.9,2975.3,0.001]
[1767105388080,2.3946,2976.6,2975.3,0.001]
[1767105388295,2.3946,2976.6,2975.1,0.881]
[1767105388462,7.56260559,2976.9,2974.9,3.39497003]
[1767105388463,2.3946,2976.4,2974.9,3.39497003]
[1767105388662,2.3946,2976.4,2975.0,0.91461344]
[1767105388867,2.3946,2976.4,2974.8,0.883]
[1767105389056,2.3946,2976.2,2974.8,0.883]
[1767105389381,2.3946,2976.2,2974.8,4.24549386]
[1767105389679,2.3946,2976.0,2974.9,0.03461457]
[1767105389859,0.23946,2976.5,2975.2,0.001]
[1767105390063,0.23946,2976.5,2975.3,0.882]
[1767105390275,2.3946,2976.4,2975.4,0.03360892]
[1767105390855,2.3946,2976.4,2975.2,0.881]
[1767105391053,2.3946,2976.2,2975.3,0.03361005]
[1767105391288,2.3946,2976.2,2975.2,4.2420322]
[1767105391459,2.3946,2976.2,2975.2,7.60315078]
[1767105391663,2.3946,2976.2,2975.3,0.03361005]
[1767105391855,2.3946,2976.2,2975.2,4.2420322]
[1767105392074,3.35999024,2976.2,2975.3,0.42420322]
[1767105392433,3.36003563,2976.2,2975.3,0.881]
[1767105392688,3.36003563,2976.2,2975.2,0.001]
[1767105392689,9.11467126,2976.2,2975.2,0.001]
[1767105392855,2.3946,2976.0,2974.8,0.002]
[1767105393052,2.3946,2976.0,2974.8,3.36348802]
[1767105393253,2.3946,2975.8,2974.9,0.03361457]
[1767105393503,2.3946,2975.8,2974.8,0.002]
[1767105393655,2.9700928,2975.8,2974.8,0.002]
[1767105394081,2.98023204,2975.8,2974.1,3.36228079]
[1767105394402,2.40473924,2975.6,2973.6,0.005]
[1767105394700,2.3946,2975.4,2973.7,0.881]
[1767105394900,2.3946,2975.4,2974.3,3.36208836]
[1767105395108,2.3946,2975.4,2974.3,4.92702175]
[1767105395384,2.3946,2975.8,2974.5,0.003]
[1767105395591,2.3946,2975.8,2974.4,7.63861612]
[1767105395592,2.3946,2975.8,2974.7,0.003]
[1767105395761,3.36047239,2975.8,2974.6,0.03361796]
[1767105395962,2.3946,2975.7,2974.7,0.881]
[1767105396187,2.3946,2975.7,2974.8,0.002]
[1767105396584,0.001,2976.2,2975.0,0.003]
[1767105396801,0.001,2976.2,2974.8,6.70708205]
[1767105396802,0.001,2976.2,2975.2,0.003]
[1767105397100,2.3946,2976.1,2974.8,0.002]
[1767105397298,2.3946,2975.9,2975.0,0.881]
[1767105398204,0.001,2976.2,2975.0,0.881]
[1767105398403,2.3946,2976.4,2975.0,0.881]
[1767105398404,2.3946,2976.8,2975.4,0.002]
[1767105398701,2.3946,2976.8,2975.6,0.002]
[1767105398884,2.3946,2976.8,2975.7,0.881]
[1767105399283,9.11232134,2977.2,2975.8,6.75648616]
[1767105399488,2.3946,2977.1,2975.8,6.75648616]
[1767105399684,2.3946,2977.1,2975.2,0.002]
[1767105399884,2.3946,2976.9,2975.7,3.36055093]
[1767105400201,2.3946,2976.9,2975.3,0.881]
[1767105400406,2.3946,2976.9,2975.5,0.002]
[1767105400577,2.3946,2976.9,2975.2,0.01013924]
[1767105400773,2.3946,2976.7,2975.1,0.881]
[1767105401001,2.3946,2976.5,2975.2,0.002]
[1767105401309,5.75426903,2976.5,2975.4,3.36089265]
[1767105401505,2.3946,2976.5,2975.4,6.75539422]
[1767105401804,9.11299832,2976.9,2975.5,0.002]
[1767105402007,2.3946,2976.9,2975.7,0.002]
[1767105402185,2.3946,2976.9,2975.8,0.9166044]
[1767105402390,2.3946,2976.9,2975.8,0.883]
[1767105402901,2.3946,2976.9,2975.8,0.002]
[1767105403105,2.3946,2976.9,2975.9,0.883]
[1767105403309,5.75347487,2977.2,2976.0,6.7204301]
[1767105403509,9.11234974,2977.2,2976.1,0.76034301]
[1767105403680,2.3946,2977.1,2976.1,0.76034301]
[1767105404079,0.001,2977.4,2976.3,0.002]
[1767105404407,3.35821603,2977.8,2976.4,0.002]
[1767105404607,3.3593488,2977.7,2976.5,0.882]
[1767105404786,2.3946,2977.6,2976.5,0.001]
[1767105405307,2.3946,2977.6,2976.6,0.001]
[1767105405511,2.3946,2977.6,2976.5,3.35965059]
[1767105405716,2.3946,2977.5,2976.4,4.24071961]
[1767105405885,2.3946,2977.5,2976.3,0.881]
[1767105406085,6.71689528,2977.6,2975.9,0.01013924]
[1767105406086,2.459,2977.3,2975.9,0.89113924]
[1767105406286,2.459,2977.3,2976.0,0.03360215]
[1767105406790,2.459,2977.3,2976.3,3.35984723]
[1767105407110,2.459,2977.2,2976.0,3.36013602]
[1767105407291,2.459,2977.0,2975.9,3.36032796]
[1767105407611,2.459,2977.0,2976.0,0.7635288]
[1767105407814,2.459,2977.0,2975.0,3.37142355]
[1767105407993,2.459,2977.0,2975.4,3.36080254]
[1767105408314,2.459,2977.0,2975.1,4.27580563]
[1767105408487,2.459,2977.0,2975.5,3.3607134]
[1767105408884,2.459,2976.8,2974.6,0.01013924]
[1767105409215,10.07895177,2976.5,2974.8,0.0356157]
[1767105409398,10.07895177,2976.5,2974.8,0.002]
[1767105409399,2.459,2976.4,2974.8,0.002]
[1767105409795,2.459,2976.2,2974.8,0.002]
[1767105410093,6.97269667,2975.9,2974.0,0.1]
[1767105410298,2.459,2975.8,2974.0,0.1]
[1767105410613,2.459,2975.6,2974.1,0.03362361]
[1767105410915,2.459,2975.5,2974.4,3.36198064]
[1767105411315,2.459,2975.3,2974.1,0.002]
[1767105411514,2.459,2975.3,2974.0,0.1]
[1767105412211,2.459,2975.3,2974.1,3.36235357]
[1767105412417,2.459,2975.1,2974.0,3.46243749]
[1767105412615,2.459,2974.9,2974.0,0.1]
[1767105412814,2.459,2974.9,2973.6,0.002]
[1767105413019,2.46913924,2974.9,2972.6,0.002]
[1767105413206,2.46913924,2974.9,2972.4,0.002]
[1767105413207,10.08640686,2974.3,2972.4,0.002]
[1767105413410,2.459,2974.1,2972.9,0.002]
[1767105413596,2.459,2974.1,2972.9,0.03563718]
[1767105413799,2.459,2974.1,2973.0,0.03363605]
[1767105414120,2.459,2973.9,2972.9,0.002]
[1767105414308,0.2459,2974.0,2972.4,6.74068051]
[1767105414309,2.459,2973.7,2972.4,3.36625652]
[1767105414508,2.459,2973.7,2972.4,6.73054127]
[1767105414817,2.459,2973.7,2972.5,0.03364171]
[1767105415025,2.459,2973.7,2972.4,10.09482602]
[1767105415315,2.459,2973.7,2972.8,6.72766414]
[1767105415491,2.459,2973.7,2972.9,0.881]
[1767105415686,2.459,2973.7,2972.8,6.72766414]
[1767105415992,2.459,2973.7,2972.8,7.60866414]
[1767105416214,0.881,2974.5,2972.9,0.03363718]
[1767105416418,0.881,2975.0,2973.1,30.0]
[1767105416617,2.459,2974.8,2973.2,2.32553379]
[1767105416821,2.459,2974.8,2973.4,9.891786]
[1767105417014,2.459,2974.8,2973.6,2.303]
[1767105417523,2.459,2974.6,2973.6,3.36292709]
[1767105417719,2.459,2974.6,2973.6,7.06214689]
[1767105418319,2.459,2974.6,2973.6,3.6992198]
[1767105418526,2.459,2974.6,2973.6,0.33629271]
[1767105419315,2.4091,2974.4,2973.2,6.72675904]
[1767105419802,2.4091,2974.4,2973.1,2.4768]
[1767105419998,2.4091,2974.2,2972.7,3.36394481]
[1767105420335,0.881,2974.3,2973.0,3.36357762]
[1767105420336,2.4091,2974.0,2973.0,3.36357762]
[1767105420536,2.4091,2974.0,2972.8,4.03598711]
[1767105420697,2.4091,2974.0,2972.4,3.36621913]
[1767105420897,2.4091,2974.0,2972.4,0.002]
[1767105421317,2.4091,2973.8,2972.4,0.002]
[1767105421521,2.4091,2973.6,2972.4,0.002]
[1767105422031,0.01013924,2975.4,2972.8,2.4768]
[1767105422032,2.4091,2975.1,2972.8,2.4768]
[1767105422197,2.4091,2974.9,2973.1,12.401829]
[1767105422518,2.4091,2974.9,2973.3,2.4768]
[1767105422702,2.4091,2974.9,2973.5,2.4768]
[1767105422907,2.4091,2974.9,2973.7,2.4768]
[1767105423303,2.4091,2974.9,2973.8,7.60640184]
[1767105423624,3.36071629,2975.6,2973.8,7.60640184]
[1767105423625,2.4091,2975.5,2974.0,2.4768]
[1767105424025,2.4091,2975.5,2974.1,0.91462361]
[1767105424199,2.4091,2975.5,2974.1,0.881]
[1767105424399,2.4091,2975.5,2974.2,2.4768]
[1767105424894,2.4091,2975.5,2973.9,0.76064018]
[1767105425095,6.7213335,2975.6,2973.5,3.36301446]
[1767105425096,2.4091,2975.3,2973.5,3.36301446]
[1767105425443,0.91304335,2975.4,2973.5,3.36301446]
[1767105425444,0.91304335,2975.4,2973.7,2.4768]
[1767105425630,2.4091,2975.3,2973.9,2.4768]
[1767105425940,3.460968,2975.2,2973.6,3.36292709]
[1767105426098,10.08271239,2975.4,2973.8,3.3578]
[1767105426099,2.4091,2975.1,2973.8,3.3578]
[1767105426655,0.881,2975.0,2973.8,2.4768]
[1767105426856,2.4091,2974.9,2973.7,0.881]
[1767105427167,2.4091,2975.2,2973.9,2.4768]
[1767105427461,5.77033155,2975.1,2974.0,3.36247478]
[1767105427623,3.36123155,2975.1,2973.9,2.4768]
[1767105427945,2.4091,2975.5,2974.0,2.4768]
[1767105428147,2.4091,2975.5,2974.2,2.4768]
[1767105428316,5.77088613,2975.5,2974.4,2.4768]
[1767105428516,6.9085244,2976.7,2974.5,19.80570824]
[1767105428517,2.4091,2976.5,2974.5,19.80570824]
[1767105428713,2.4091,2976.5,2974.7,6.2086]
[1767105428918,2.4091,2976.3,2974.8,0.70896]
[1767105429151,2.41923924,2976.3,2974.0,0.03362474]
[1767105429362,2.41923924,2976.3,2974.5,0.881]
[1767105429363,0.01013924,2976.1,2974.5,0.881]
[1767105429650,2.4091,2975.8,2974.5,3.36186488]
[1767105429829,2.4091,2975.8,2974.3,0.881]
[1767105430148,2.41923924,2975.8,2973.9,0.881]
[1767105430338,2.4091,2975.5,2973.9,0.881]
[1767105430542,1.25002231,2975.7,2974.4,3.36195219]
[1767105430543,3.2901,2975.4,2974.4,3.36195219]
[1767105430753,3.2901,2975.4,2974.2,0.03362248]
[1767105430932,3.2901,2975.4,2973.9,4.24354467]
[1767105430933,3.2901,2975.4,2973.9,4.27717054]
[1767105431329,3.2901,2975.4,2974.4,3.36195598]
[1767105431545,3.36111858,2975.2,2973.9,0.881]
[1767105431848,2.73811,2975.3,2974.0,6.72494956]
[1767105432017,2.73811,2975.3,2974.1,0.03362361]
[1767105432425,2.4091,2975.2,2973.9,3.36255239]
[1767105432647,2.4091,2975.2,2973.9,4.24355239]
[1767105432842,2.4091,2975.0,2973.9,4.66810763]
[1767105433040,2.4091,2975.0,2973.8,0.002]
[1767105433556,2.4091,2975.0,2973.9,3.36258778]
[1767105433758,1.21001,2975.3,2973.8,0.035627]
[1767105433962,4.5710874,2975.3,2973.8,0.035627]
[1767105434158,6.9801874,2975.3,2973.8,0.035627]
[1767105434360,2.4091,2975.3,2974.0,4.463423]
[1767105434538,2.4091,2975.3,2973.9,1.0124069]
[1767105434539,2.4091,2975.7,2974.2,22.603363]
[1767105434730,2.4091,2975.7,2974.3,0.03362135]
[1767105434933,5.76922217,2976.1,2974.4,13.934232]
[1767105435127,5.76922217,2976.1,2974.2,30.0]
[1767105435329,2.4091,2976.0,2974.4,2.9091]
[1767105435638,2.4091,2975.8,2974.6,6.72359308]
[1767105435839,2.4091,2975.8,2974.7,3.7037]
[1767105436051,2.4091,2975.8,2974.7,4.5507]
[1767105436262,2.4091,2975.8,2974.8,0.881]
[1767105436467,2.4091,2975.8,2974.8,1.64145931]
[1767105436632,2.4091,2975.8,2974.8,0.76045931]
[1767105436837,2.4091,2975.8,2974.8,0.881]
[1767105437258,2.4091,2975.8,2974.6,3.36179654]
[1767105437491,2.4091,2975.8,2974.6,6.72359308]
[1767105437967,2.4132,2975.7,2974.5,6.72381912]
[1767105438336,2.4132,2975.7,2974.5,10.08572868]
[1767105438538,2.4132,2975.7,2974.6,1.01193489]
[1767105438936,3.61842034,2977.2,2974.6,1.01193489]
[1767105438937,2.4132,2976.5,2974.7,0.03361683]
[1767105439266,0.001,2976.7,2975.2,0.01013924]
[1767105439467,0.001,2976.7,2975.3,22.795664]
[1767105439670,0.001,2976.7,2975.5,13.377736]
[1767105439849,0.001,2976.7,2975.8,0.01013924]
[1767105440169,0.001,2976.7,2976.0,16.513845]
[1767105440356,0.001,2976.9,2976.0,16.513845]
[1767105440543,0.001,2976.9,2975.6,16.81347299]
[1767105440544,0.001,2976.9,2976.1,0.881]
[1767105440744,2.4142,2976.9,2976.1,0.881]
[1767105440944,2.4142,2976.9,2975.2,0.01013924]
[1767105440945,2.4132,2976.7,2975.5,3.36076395]
[1767105441154,2.4132,2976.5,2974.7,3.670752]
[1767105441358,2.4132,2976.5,2974.9,0.881]
[1767105441766,2.4132,2976.5,2975.2,3.36104603]
[1767105442069,2.4132,2976.8,2975.3,8.795845]
[1767105442281,0.001,2976.9,2975.2,6.72216461]
[1767105442282,3.3602648,2976.9,2975.5,3.709605]
[1767105442490,2.4132,2976.8,2975.4,1.55180096]
[1767105442778,2.4132,2976.8,2975.5,0.881]
[1767105442973,2.4132,2976.8,2975.6,0.881]
[1767105443179,2.4132,2976.8,2975.2,6.72216461]
[1767105443180,2.4132,2976.5,2975.2,6.72216461]
[1767105443392,2.4132,2976.5,2975.3,0.03361005]
[1767105443556,2.4132,2976.5,2975.2,3.36104603]
[1767105443739,2.4132,2976.1,2975.1,4.2422275]
[1767105444139,2.4132,2976.1,2975.1,7.60345905]
[1767105444572,2.4132,2976.1,2975.1,4.2422275]
[1767105444775,2.4132,2976.1,2975.1,4.24222696]
[1767105444939,2.4132,2976.6,2975.3,11.488561]
[1767105445141,2.65452,2976.6,2975.4,1.18582614]
[1767105445445,2.4132,2976.5,2975.3,4.162]
[1767105445649,2.4132,2976.5,2975.2,4.558072]
[1767105445879,2.4132,2976.5,2975.3,6.75562127]
[1767105446178,3.2952,2976.9,2975.4,4.785247]
[1767105446379,3.2952,2976.9,2975.3,6.72201122]
[1767105446380,2.4132,2976.8,2975.3,6.72201122]
[1767105446554,2.4132,2976.6,2975.4,0.67220112]
[1767105446755,2.4132,2976.6,2975.2,4.24207349]
[1767105447094,2.4142,2976.6,2975.4,8.964588]
[1767105447247,2.4142,2976.6,2975.5,0.03360779]
[1767105447449,0.001,2976.6,2975.4,12.885449]
[1767105447648,0.001,2976.6,2975.6,12.95101]
[1767105447984,0.001,2976.6,2975.6,4.65907725]
[1767105447985,2.4132,2976.5,2975.6,4.65907725]
[1767105448179,2.4132,2976.5,2975.5,0.881]
[1767105448398,2.4132,2976.5,2974.7,0.01013924]
[1767105448547,2.4132,2976.3,2974.0,0.16]
[1767105448756,2.42333924,2976.3,2974.2,25.482497]
[1767105448960,2.42333924,2976.3,2974.2,12.385116]
[1767105449185,2.4132,2976.1,2974.5,3.36188189]
[1767105449383,2.4132,2976.1,2974.8,3.3615565]
[1767105449589,2.4132,2976.1,2974.6,0.881]
[1767105449774,2.4132,2976.1,2974.8,3.36153275]
[1767105449993,2.4132,2975.9,2974.7,3.36168353]
[1767105450303,2.4132,2975.7,2974.7,0.76044541]
[1767105451391,2.4132,2975.7,2974.4,4.24294743]
[1767105451702,2.4132,2975.7,2974.1,3.36227028]
[1767105451908,2.4132,2975.7,2973.8,0.01213924]
[1767105451909,2.4132,2975.5,2973.8,0.002]
[1767105452199,2.4132,2975.3,2973.9,0.881]
[1767105452534,2.4132,2975.3,2974.0,0.03362474]
[1767105452663,3.36066675,2975.6,2974.1,0.03362361]
[1767105452989,4.0328001,2975.6,2974.2,19.513313]
[1767105453172,4.0328001,2975.6,2974.3,0.03362135]
[1767105453368,2.4132,2975.7,2974.4,0.91462022]
[1767105453981,2.4132,2975.6,2974.5,3.36190956]
[1767105454181,2.4132,2975.6,2974.5,6.72381912]
[1767105454404,2.4132,2975.6,2974.6,0.03361796]
[1767105454568,2.4132,2975.6,2974.4,3.36194584]
[1767105454768,2.4132,2975.4,2974.3,3.3620681]
[1767105454968,2.4132,2975.4,2974.2,4.24324235]
[1767105455284,2.4132,2975.4,2974.2,0.881]
[1767105455585,2.4132,2975.3,2974.0,4.2433669]
[1767105455784,2.4132,2975.1,2974.1,3.7866757]
[1767105456319,2.4132,2975.1,2974.2,3.39587115]
[1767105456493,2.4132,2975.1,2974.2,3.36224867]
[1767105456875,2.4132,2975.1,2974.3,0.03362135]
[1767105457093,2.4132,2975.1,2974.2,3.36224867]
[1767105457317,2.4132,2975.0,2974.1,0.42433669]
[1767105457625,2.4132,2974.7,2973.0,3.36356915]
[1767105457787,2.4132,2974.7,2972.9,0.881]
[1767105458103,2.4132,2974.5,2972.9,0.881]
[1767105458317,0.33955924,2975.2,2973.1,0.002]
[1767105458613,2.4132,2974.7,2973.1,0.002]
[1767105458823,2.4132,2974.7,2973.3,0.002]
[1767105458973,2.4132,2974.7,2973.5,0.002]
[1767105459697,2.4132,2974.7,2973.6,0.03562927]
[1767105460054,2.4132,2974.7,2973.1,0.002]
[1767105460307,2.4132,2974.4,2972.7,3.56915]
[1767105460622,2.4132,2974.4,2972.6,0.002]
[1767105460623,2.4132,2974.2,2972.6,0.002]
[1767105460927,2.4132,2974.2,2972.6,0.91664058]
[1767105461076,2.4132,2974.2,2972.6,0.883]
[1767105461272,2.4132,2974.0,2972.6,0.002]
[1767105461699,2.4132,2973.8,2972.6,0.002]
[1767105461896,2.4132,2974.2,2972.8,0.002]
[1767105462105,2.4132,2974.2,2972.9,0.881]
[1767105462401,2.4132,2974.1,2973.0,3.36360578]
[1767105462600,2.4132,2974.1,2973.1,0.42446058]
[1767105462803,2.4132,2974.5,2973.2,0.03363379]
[1767105463086,2.4132,2974.5,2973.3,0.03363266]
[1767105463292,2.4132,2974.5,2973.1,1.3410955]